bitfinex/quotes_BTCUSD_20220207
["timestamp","ask_amount","ask_price","bid_price","bid_amount"]
[1644247502852,1.36819371,43396.0,43395.0,0.00020417]
[1644247503701,1.51556643,43396.0,43395.0,0.00020417]
[1644247504099,1.46556643,43396.0,43395.0,0.00020417]
[1644247504300,1.50579759,43396.0,43395.0,0.00020417]
[1644247504500,1.55579759,43396.0,43395.0,0.00020417]
[1644247504702,1.93824335,43396.0,43395.0,4.17e-06]
[1644247504901,0.05,43390.0,43380.0,0.00071846]
[1644247505102,0.25709889,43381.0,43380.0,0.00071846]
[1644247505301,0.62961489,43381.0,43380.0,0.00071846]
[1644247505501,0.75,43380.0,43367.0,0.05339446]
[1644247505701,0.07494421,43371.0,43367.0,0.05339446]
[1644247506102,0.01005075,43373.0,43367.0,0.05339446]
[1644247506503,0.01005075,43368.0,43362.0,0.115357]
[1644247507246,0.01005075,43366.0,43362.0,0.115357]
[1644247508247,0.01005075,43372.0,43365.0,0.03994925]
[1644247508451,0.372516,43377.0,43370.0,0.03994925]
[1644247508652,0.07231571,43375.0,43364.0,0.057672]
[1644247508948,0.07231571,43375.0,43366.0,0.115341]
[1644247508949,0.01005075,43372.0,43366.0,0.115341]
[1644247509149,0.31832923,43374.0,43368.0,0.03994925]
[1644247509350,0.326416,43373.0,43368.0,0.03994925]
[1644247510048,0.26174182,43372.0,43369.0,0.11533]
[1644247510248,0.326416,43371.0,43369.0,0.11533]
[1644247510504,0.01821523,43373.0,43369.0,0.11533]
[1644247510700,0.01821523,43373.0,43369.0,0.05527925]
[1644247510904,0.01821523,43373.0,43370.0,0.326416]
[1644247511109,0.01821523,43373.0,43371.0,0.37669653]
[1644247511305,0.01321523,43373.0,43372.0,0.636582]
[1644247511699,0.01321523,43373.0,43371.0,0.057657]
[1644247512199,0.01321523,43373.0,43372.0,0.326416]
[1644247512401,0.01861581,43377.0,43372.0,0.326416]
[1644247512599,0.01861581,43377.0,43371.0,0.057657]
[1644247512800,0.01861581,43377.0,43372.0,0.326416]
[1644247513201,0.01861581,43377.0,43372.0,0.32713483]
[1644247513704,0.01861581,43377.0,43372.0,0.00071883]
[1644247513705,0.0879177,43374.0,43372.0,0.00071883]
[1644247513908,0.0879177,43374.0,43365.0,0.515325]
[1644247514103,0.05,43372.0,43360.0,0.3]
[1644247514356,0.05,43369.0,43352.0,0.19511864]
[1644247514554,0.05,43369.0,43362.0,0.115357]
[1644247514753,0.0461,43373.0,43362.0,0.110357]
[1644247514754,0.326416,43368.0,43362.0,0.110357]
[1644247514953,0.06593206,43367.0,43362.0,0.168033]
[1644247515354,0.06593206,43367.0,43363.0,0.22705244]
[1644247515753,0.22799782,43369.0,43365.0,0.057669]
[1644247515952,0.22799782,43369.0,43365.0,0.052669]
[1644247515953,0.326416,43368.0,43365.0,0.052669]
[1644247516954,0.08095857,43367.0,43365.0,0.052669]
[1644247517154,0.45272957,43367.0,43365.0,0.052669]
[1644247517354,0.27091449,43366.0,43365.0,0.052669]
[1644247518196,0.47171349,43366.0,43365.0,0.052669]
[1644247519196,0.40272957,43367.0,43365.0,0.052669]
[1644247520396,0.59744212,43367.0,43365.0,0.052669]
[1644247521501,0.25587155,43363.0,43362.0,0.105357]
[1644247521749,0.45667055,43363.0,43362.0,0.105357]
[1644247522650,0.25587155,43363.0,43362.0,0.105357]
[1644247524154,0.58244555,43363.0,43362.0,0.105357]
[1644247525708,0.58216802,43363.0,43362.0,0.105357]
[1644247526714,0.58116759,43363.0,43362.0,0.105357]
[1644247527310,0.57960787,43363.0,43362.0,0.105357]
[1644247528509,0.57960787,43363.0,43361.0,0.057678]
[1644247528709,0.25303387,43363.0,43361.0,0.057678]
[1644247529361,0.018435,43371.0,43361.0,0.057678]
[1644247529760,0.018435,43371.0,43364.0,0.057661]
[1644247529957,0.018435,43371.0,43365.0,0.326574]
[1644247530155,0.018435,43371.0,43364.0,0.05834776]
[1644247530356,0.07926173,43371.0,43365.0,0.326574]
[1644247530560,0.07926173,43371.0,43364.0,0.00068676]
[1644247530757,0.326574,43370.0,43364.0,0.00068676]
[1644247530957,0.22771233,43372.0,43365.0,0.057673]
[1644247531157,0.22771233,43372.0,43365.0,0.05835974]
[1644247531558,0.01902181,43378.0,43366.0,0.05766]
[1644247531758,0.01902181,43378.0,43366.0,0.10766]
[1644247531961,0.01902181,43378.0,43372.0,0.19208094]
[1644247532159,0.07836236,43377.0,43367.0,0.3]
[1644247532459,0.33883315,43378.0,43367.0,0.3]
[1644247532460,0.00054743,43378.0,43367.0,0.05]
[1644247532661,0.00054743,43378.0,43370.0,0.05766]
[1644247532858,0.00054743,43378.0,43372.0,0.057661]
[1644247533302,0.21375583,43380.0,43372.0,0.057661]
[1644247533501,0.326574,43379.0,43372.0,0.057661]
[1644247533701,0.195996,43376.0,43372.0,0.057661]
[1644247534504,0.326574,43379.0,43372.0,0.057661]
[1644247534903,0.02164365,43382.0,43372.0,0.115321]
[1644247535104,0.19762461,43388.0,43372.0,0.115321]
[1644247535305,0.326574,43388.0,43382.0,0.22232663]
[1644247535504,0.14409,43392.0,43382.0,0.057644]
[1644247535505,0.45002476,43392.0,43382.0,0.057644]
[1644247535704,0.19762461,43393.0,43382.0,0.057644]
[1644247535904,0.40563506,43395.0,43382.0,0.057644]
[1644247535905,0.20740016,43389.0,43382.0,0.1729171]
[1644247536106,0.20740016,43389.0,43382.0,0.46672756]
[1644247536310,0.0503,43400.0,43382.0,0.46672756]
[1644247536311,0.02068892,43404.0,43397.0,0.01659968]
[1644247536507,0.28554387,43405.0,43403.0,0.02]
[1644247536508,0.03,43405.0,43403.0,0.02]
[1644247536754,0.03,43405.0,43402.0,0.057611]
[1644247536755,0.00027912,43404.0,43402.0,0.057611]
[1644247536956,0.025,43405.0,43403.0,0.0461]
[1644247537159,0.02527912,43405.0,43403.0,0.0461]
[1644247537355,0.19473591,43404.0,43403.0,0.0461]
[1644247537556,0.63169187,43404.0,43403.0,0.5]
[1644247537955,0.54630991,43404.0,43403.0,0.5]
[1644247538457,0.54630991,43404.0,43402.0,0.107611]
[1644247538659,0.995996,43403.0,43394.0,0.02001161]
[1644247538859,1.09627512,43403.0,43395.0,0.49967445]
[1644247539059,1.09627512,43403.0,43387.0,0.3]
[1644247539060,0.08614901,43395.0,43387.0,0.3]
[1644247539259,0.08614901,43395.0,43383.0,0.3]
[1644247539260,0.00027912,43395.0,43383.0,0.3]
[1644247539460,0.23682219,43391.0,43386.0,0.025]
[1644247539662,0.23682219,43391.0,43380.0,0.230534]
[1644247539663,0.26182219,43391.0,43381.0,0.025]
[1644247539861,0.26182219,43391.0,43384.0,0.025]
[1644247539862,0.23682219,43391.0,43384.0,0.025]
[1644247540261,0.326574,43390.0,43383.0,0.025]
[1644247540507,0.23682219,43391.0,43387.0,0.025]
[1644247540706,0.326574,43390.0,43386.0,0.025]
[1644247541002,0.00065557,43389.0,43386.0,0.025]
[1644247541400,0.00065557,43389.0,43381.0,0.53417221]
[1644247541401,0.30700755,43387.0,43381.0,0.26893108]
[1644247541602,0.33200755,43387.0,43385.0,0.025]
[1644247541903,0.33200755,43387.0,43382.0,0.057651]
[1644247542101,0.33200755,43387.0,43383.0,0.05]
[1644247542102,0.025,43384.0,43383.0,0.05]
[1644247542502,0.23765328,43384.0,43383.0,0.05]
[1644247542702,0.21265328,43384.0,43383.0,0.05]
[1644247543902,0.26915052,43385.0,43383.0,0.05]
[1644247544344,0.59572452,43385.0,43383.0,0.05]
[1644247544546,0.195996,43384.0,43383.0,0.05]
[1644247544746,0.26915052,43385.0,43383.0,0.05]
[1644247545547,0.59572452,43385.0,43383.0,0.05]
[1644247545749,0.59572452,43385.0,43382.0,0.057651]
[1644247545750,0.025,43384.0,43382.0,0.057651]
[1644247545948,0.351574,43384.0,43382.0,0.057651]
[1644247546248,0.326574,43384.0,43382.0,0.057651]
[1644247546848,0.07394399,43383.0,43382.0,0.057651]
[1644247547048,0.32663645,43384.0,43383.0,0.0002859]
[1644247547348,6.245e-05,43384.0,43383.0,0.0002859]
[1644247548001,0.32663645,43384.0,43383.0,0.0002859]
[1644247548195,6.245e-05,43384.0,43383.0,0.0002859]
[1644247550295,0.32663645,43384.0,43383.0,0.0002859]
[1644247550496,6.245e-05,43384.0,43383.0,0.0002859]
[1644247550696,0.10006245,43384.0,43383.0,0.0002859]
[1644247550896,0.14616245,43384.0,43383.0,0.0002859]
[1644247551952,0.14616245,43384.0,43383.0,0.00015748]
[1644247551953,0.37254558,43384.0,43383.0,0.00015748]
[1644247552348,0.47254558,43384.0,43383.0,0.00015748]
[1644247552549,0.69445109,43384.0,43383.0,0.00015748]
[1644247552752,0.47254558,43384.0,43383.0,0.00015748]
[1644247553552,0.8,43383.0,43374.0,0.13308804]
[1644247553750,0.242096,43382.0,43375.0,0.05]
[1644247553952,0.025,43376.0,43375.0,0.05]
[1644247554151,0.025,43376.0,43374.0,0.02010056]
[1644247554152,0.220996,43376.0,43374.0,0.02010056]
[1644247554652,0.0461,43375.0,43374.0,0.02010056]
[1644247554850,0.44003329,43375.0,43374.0,0.02010056]
[1644247555252,0.44003329,43375.0,43368.0,0.30071865]
[1644247555253,0.54003329,43375.0,43368.0,0.30071865]
[1644247555506,0.025,43369.0,43368.0,0.00071865]
[1644247556097,0.2296743,43369.0,43368.0,0.00071865]
[1644247556298,0.2296743,43369.0,43367.0,0.115349]
[1644247556299,0.2296743,43369.0,43367.0,0.165349]
[1644247556499,0.02,43369.0,43367.0,0.165349]
[1644247556700,0.0514063,43371.0,43368.0,0.05]
[1644247556902,0.36446853,43370.0,43367.0,0.115349]
[1644247557100,0.07895002,43368.0,43367.0,0.115349]
[1644247557301,0.36446853,43370.0,43367.0,0.115349]
[1644247558704,0.08399516,43369.0,43367.0,0.115349]
[1644247558904,0.08399516,43369.0,43367.0,0.173017]
[1644247560254,0.08399516,43369.0,43367.0,0.123017]
[1644247560457,0.08399516,43369.0,43367.0,0.23835121]
[1644247560653,0.07899516,43369.0,43367.0,0.23835121]
[1644247561553,0.07899516,43369.0,43367.0,0.17301948]
[1644247562154,6.134e-05,43369.0,43367.0,0.17301948]
[1644247562355,6.134e-05,43369.0,43368.0,0.20642323]
[1644247562555,6.134e-05,43369.0,43367.0,0.17301948]
[1644247563211,0.08988045,43368.0,43367.0,0.17301948]
[1644247563410,0.08988045,43368.0,43367.0,0.10767048]
[1644247564711,0.08988045,43368.0,43367.0,0.09267048]
[1644247565112,0.08988045,43368.0,43367.0,0.05767048]
[1644247565312,0.07584352,43368.0,43367.0,0.05767048]
[1644247565713,6.134e-05,43369.0,43367.0,0.05767048]
[1644247566312,0.02,43368.0,43367.0,0.10767048]
[1644247566513,0.02,43368.0,43367.0,0.05]
[1644247569458,0.08384604,43369.0,43367.0,0.05]
[1644247569459,0.02006134,43369.0,43367.0,0.05]
[1644247570260,6.134e-05,43369.0,43367.0,0.05]
[1644247570505,6.134e-05,43369.0,43367.0,0.1076683]
[1644247570805,0.02,43368.0,43367.0,0.1076683]
[1644247570999,0.02,43368.0,43367.0,0.05]
[1644247571400,6.134e-05,43369.0,43367.0,0.05]
[1644247571597,0.02,43368.0,43367.0,0.05]
[1644247572401,6.134e-05,43369.0,43367.0,0.05]
[1644247573603,6.134e-05,43369.0,43367.0,0.115353]
[1644247573604,0.0461,43368.0,43367.0,0.115353]
[1644247573801,0.326574,43367.0,43366.0,0.05834403]
[1644247574002,0.262096,43367.0,43366.0,0.05834403]
[1644247574252,0.362096,43367.0,43366.0,0.057673]
[1644247574654,0.31051088,43366.0,43364.0,0.00067094]
[1644247574853,0.0461,43365.0,43364.0,0.05835394]
[1644247575053,0.31051088,43366.0,43364.0,0.05835394]
[1644247575253,0.0461,43365.0,43364.0,0.05835394]
[1644247575452,0.0461,43365.0,43363.0,0.39607984]
[1644247575655,6.134e-05,43369.0,43364.0,0.057679]
[1644247575856,0.0461,43368.0,43364.0,0.057679]
[1644247576353,0.29713325,43371.0,43367.0,0.11535181]
[1644247576552,0.65907839,43375.0,43367.0,0.16535181]
[1644247576553,0.195996,43370.0,43367.0,0.16535181]
[1644247576754,0.5674,43382.0,43368.0,0.30992336]
[1644247576755,0.0461,43374.0,43368.0,0.30992336]
[1644247576954,0.02138098,43378.0,43374.0,0.057661]
[1644247577155,0.53250962,43384.0,43374.0,0.057661]
[1644247577354,0.15829138,43383.0,43375.0,0.05766097]
[1644247577554,0.37658881,43378.0,43377.0,0.02138098]
[1644247578803,0.37158881,43378.0,43377.0,0.02138098]
[1644247579005,0.37158881,43378.0,43377.0,0.00347679]
[1644247579205,0.389493,43378.0,43377.0,0.00347679]
[1644247579806,0.01790419,43378.0,43377.0,0.05347679]
[1644247580204,0.01790419,43378.0,43377.0,0.10347679]
[1644247580404,0.01790419,43378.0,43377.0,0.05347679]
[1644247580604,0.01790419,43378.0,43377.0,0.10347679]
[1644247580804,0.01790419,43378.0,43377.0,0.05347679]
[1644247581206,0.01790419,43378.0,43377.0,0.00347679]
[1644247582255,0.01790419,43378.0,43377.0,0.00368178]
[1644247582659,0.43590146,43381.0,43377.0,0.00020499]
[1644247582857,0.2366415,43379.0,43377.0,0.00020499]
[1644247583057,0.2366415,43379.0,43377.0,0.05787699]
[1644247583257,0.00065333,43380.0,43377.0,0.05787699]
[1644247583959,0.29645777,43380.0,43377.0,0.05787699]
[1644247584159,0.29645777,43380.0,43377.0,0.11554401]
[1644247584459,0.29645777,43380.0,43377.0,0.10787699]
[1644247585061,0.53718131,43381.0,43377.0,0.10787699]
[1644247585062,0.29645777,43379.0,43377.0,0.10787699]
[1644247585505,0.29645777,43378.0,43377.0,0.05020499]
[1644247585899,0.88304871,43381.0,43377.0,0.00020499]
[1644247585900,0.27365752,43380.0,43377.0,0.00020499]
[1644247586101,0.29644382,43379.0,43377.0,0.05788099]
[1644247586303,0.27365752,43380.0,43377.0,0.05788099]
[1644247586304,0.5612264,43380.0,43377.0,0.05788099]
[1644247586500,0.71952492,43380.0,43377.0,0.05788099]
[1644247586701,0.5612264,43380.0,43377.0,0.05788099]
[1644247586902,0.29644713,43378.0,43377.0,0.05788099]
[1644247587101,0.29644713,43378.0,43377.0,0.00020499]
[1644247587303,0.56254458,43380.0,43379.0,0.00020419]
[1644247587304,0.55606383,43380.0,43379.0,0.00020419]
[1644247587502,0.2596167,43380.0,43379.0,0.00020419]
[1644247587702,0.2596167,43380.0,43376.0,0.057673]
[1644247587703,0.26180972,43377.0,43376.0,0.00013316]
[1644247588101,0.26180972,43377.0,43372.0,0.23005964]
[1644247588303,0.26180972,43377.0,43376.0,0.05]
[1644247588703,0.75,43379.0,43376.0,0.05]
[1644247588905,0.75065333,43379.0,43376.0,0.05]
[1644247589253,1.04710046,43379.0,43376.0,0.05]
[1644247589454,1.20539388,43379.0,43377.0,0.05766514]
[1644247589854,1.04644713,43379.0,43377.0,0.05766514]
[1644247590153,1.04776531,43379.0,43377.0,0.05766514]
[1644247591055,0.29644713,43378.0,43377.0,0.05766514]
[1644247591255,0.45474181,43378.0,43377.0,0.05766514]
[1644247591459,0.29644713,43378.0,43377.0,0.05766514]
[1644247591678,0.45474181,43378.0,43376.0,0.165341]
[1644247591955,0.15961286,43378.0,43377.0,0.05]
[1644247592354,0.00131818,43378.0,43377.0,0.05]
[1644247592558,0.29785768,43378.0,43377.0,0.05]
[1644247592757,0.00131818,43378.0,43376.0,0.165341]
[1644247593005,0.50548315,43378.0,43376.0,0.165341]
[1644247593400,0.02548315,43378.0,43376.0,0.165341]
[1644247593602,0.03740239,43382.0,43377.0,0.4]
[1644247593802,0.004,43383.0,43381.0,0.05]
[1644247594006,0.004,43383.0,43382.0,0.326512]
[1644247594202,0.29916895,43386.0,43383.0,0.326512]
[1644247594400,0.99907912,43391.0,43385.0,0.05]
[1644247594401,0.29650341,43388.0,43385.0,0.05]
[1644247594601,0.9988,43391.0,43387.0,0.05]
[1644247594802,0.99907912,43391.0,43390.0,0.05]
[1644247595001,0.9988,43391.0,43390.0,0.05]
[1644247595504,0.65295,43391.0,43390.0,0.10764291]
[1644247595701,0.65295,43391.0,43390.0,0.15764291]
[1644247596103,0.65295,43391.0,43390.0,0.20764291]
[1644247597150,0.5996053,43391.0,43390.0,0.20764291]
[1644247597551,0.01271322,43392.0,43390.0,0.4296609]
[1644247597750,0.01271322,43392.0,43391.0,0.05]
[1644247598552,0.01271322,43392.0,43391.0,0.31768092]
[1644247598751,0.00064517,43394.0,43391.0,0.31768092]
[1644247598752,0.00064517,43394.0,43391.0,0.05]
[1644247598951,0.00092429,43394.0,43392.0,0.11527723]
[1644247599154,0.00064517,43394.0,43392.0,0.16527723]
[1644247599552,0.00027912,43395.0,43392.0,0.16527723]
[1644247599754,0.36306497,43393.0,43392.0,0.16527723]
[1644247601015,0.6532002,43393.0,43392.0,0.16527723]
[1644247601208,0.35682993,43393.0,43392.0,0.16527723]
[1644247601710,0.65319996,43393.0,43392.0,0.16527723]
[1644247602108,0.65319996,43393.0,43392.0,0.16027723]
[1644247602309,0.35682993,43393.0,43392.0,0.16027723]
[1644247602711,0.70317987,43393.0,43392.0,0.21027723]
[1644247602910,0.40682993,43393.0,43392.0,0.21027723]
[1644247603108,0.40182993,43393.0,43392.0,0.21027723]
[1644247603910,0.29696221,43395.0,43392.0,0.21027723]
[1644247604354,0.00027912,43396.0,43392.0,0.21027723]
[1644247604355,0.29659616,43396.0,43393.0,0.05]
[1644247604552,0.29696221,43396.0,43393.0,0.05]
[1644247604752,0.00064517,43396.0,43394.0,0.25756915]
[1644247605153,0.29696221,43396.0,43395.0,0.05]
[1644247605553,0.29631704,43396.0,43395.0,0.05]
[1644247605753,0.29631704,43396.0,43395.0,0.27291538]
[1644247606353,0.29631704,43397.0,43395.0,0.27291538]
[1644247606754,0.54685239,43397.0,43395.0,0.27291538]
[1644247607656,0.29631704,43396.0,43395.0,0.27291538]
[1644247609307,0.29631704,43396.0,43395.0,0.165277]
[1644247610210,0.29631704,43396.0,43395.0,0.22291538]
[1644247610610,0.05,43396.0,43395.0,0.22291538]
[1644247610807,0.34631704,43396.0,43395.0,0.22291538]
[1644247611410,0.34631704,43396.0,43395.0,0.165277]
[1644247612061,0.29631704,43396.0,43395.0,0.165277]
[1644247612459,0.29631704,43396.0,43394.0,0.07283411]
[1644247612662,0.29631704,43396.0,43393.0,0.115278]
[1644247612663,0.39578111,43395.0,43393.0,0.115278]
[1644247612860,0.06165146,43394.0,43386.0,0.0187953]
[1644247613060,0.30570703,43387.0,43386.0,0.0187953]
[1644247613461,0.58233624,43387.0,43386.0,0.0187953]
[1644247614961,0.32662921,43387.0,43385.0,0.05765634]
[1644247615161,0.32662921,43387.0,43385.0,0.10765634]
[1644247616003,0.05,43387.0,43385.0,0.10765634]
[1644247618407,0.00064517,43388.0,43385.0,0.15765634]
[1644247618607,0.00064517,43388.0,43385.0,0.3764638]
[1644247618807,0.29625057,43392.0,43385.0,0.3764638]
[1644247619008,0.00064517,43389.0,43387.0,0.172936]
[1644247619251,0.00064517,43389.0,43388.0,0.32042483]
[1644247619653,0.00064517,43389.0,43388.0,0.045]
[1644247619856,0.29625057,43394.0,43388.0,0.045]
[1644247620055,0.29625057,43394.0,43389.0,0.05764108]
[1644247620254,0.05,43390.0,43389.0,0.05764108]
[1644247620453,0.05,43390.0,43388.0,0.17292716]
[1644247620653,0.05,43390.0,43388.0,0.057645]
[1644247620654,0.71442384,43390.0,43388.0,0.057645]
[1644247620855,0.41817327,43390.0,43388.0,0.057645]
[1644247621057,0.29630577,43389.0,43388.0,0.057645]
[1644247621255,0.76379894,43390.0,43388.0,0.057645]
[1644247621456,0.51171179,43389.0,43388.0,0.057645]
[1644247621660,0.21538928,43389.0,43388.0,0.057645]
[1644247623013,0.41817327,43390.0,43384.0,0.00071776]
[1644247623209,0.05,43387.0,43384.0,0.00071776]
[1644247623409,0.29633014,43388.0,43385.0,0.05765254]
[1644247623605,0.35398514,43389.0,43385.0,0.05765254]
[1644247623806,0.05,43386.0,43385.0,0.115302]
[1644247625107,0.2969753,43388.0,43385.0,0.165302]
[1644247625908,0.29633014,43389.0,43385.0,0.165302]
[1644247626108,0.45327967,43392.0,43385.0,0.165302]
[1644247626109,0.29633014,43390.0,43385.0,0.165302]
[1644247626307,0.00064517,43389.0,43385.0,0.165302]
[1644247626755,0.05,43386.0,43385.0,0.165302]
[1644247627157,0.29633014,43389.0,43385.0,0.165302]
[1644247627357,0.29633014,43389.0,43385.0,0.47732875]
[1644247627562,0.00064516,43388.0,43385.0,0.47732875]
[1644247627759,0.00064516,43388.0,43386.0,0.05]
[1644247627961,0.00064516,43388.0,43385.0,0.165302]
[1644247628359,0.29633014,43390.0,43386.0,0.05]
[1644247628560,0.05829817,43389.0,43386.0,0.05]
[1644247629160,0.35462831,43389.0,43386.0,0.05]
[1644247629563,0.057653,43389.0,43385.0,0.10765116]
[1644247630363,0.29697531,43390.0,43385.0,0.16530216]
[1644247630605,0.29697531,43390.0,43388.0,0.31998463]
[1644247630803,0.29633014,43391.0,43388.0,0.41998463]
[1644247631006,0.00064517,43390.0,43388.0,0.41998463]
[1644247631202,0.29697531,43390.0,43388.0,0.41597452]
[1644247631404,0.00064517,43390.0,43389.0,0.115282]
[1644247631803,0.00064517,43390.0,43389.0,0.165282]
[1644247632102,0.29697531,43392.0,43389.0,0.115282]
[1644247632401,0.29633014,43391.0,43389.0,0.115282]
[1644247633002,0.00064517,43392.0,43390.0,0.32212425]
[1644247633202,0.00027912,43396.0,43391.0,0.39876245]
[1644247633203,0.29633014,43394.0,43391.0,0.39876245]
[1644247633403,0.00064517,43392.0,43391.0,0.29876245]
[1644247633602,0.00064517,43392.0,43391.0,0.34876245]
[1644247634254,0.29633014,43395.0,43391.0,0.34876245]
[1644247634455,0.29633014,43395.0,43392.0,0.11527132]
[1644247634755,0.29633014,43395.0,43392.0,0.16527132]
[1644247635156,0.29633014,43395.0,43392.0,0.28055632]
[1644247635756,0.24704818,43395.0,43393.0,0.10763424]
[1644247635958,0.00027912,43396.0,43395.0,0.326512]
[1644247636156,0.13692332,43404.0,43396.0,0.8]
[1644247636157,0.34562567,43404.0,43396.0,0.8]
[1644247636358,0.34862567,43407.0,43397.0,1.126512]
[1644247636558,0.003,43407.0,43406.0,0.2501982]
[1644247636757,0.003,43407.0,43406.0,0.3001982]
[1644247637156,0.01574298,43410.0,43406.0,0.3501982]
[1644247637357,0.001,43412.0,43408.0,0.75]
[1644247637555,0.00521092,43413.0,43412.0,0.5]
[1644247637754,0.00521092,43413.0,43411.0,0.05]
[1644247638204,0.00521092,43413.0,43408.0,0.21521]
[1644247638205,0.00521092,43413.0,43408.0,0.057604]
[1644247638405,0.002,43417.0,43408.0,0.057604]
[1644247638606,0.02468682,43416.0,43410.0,0.11519849]
[1644247639605,0.02468682,43416.0,43411.0,0.05]
[1644247639804,0.02468682,43416.0,43411.0,0.165237]
[1644247640007,0.00040472,43417.0,43411.0,0.215237]
[1644247640810,0.00040472,43417.0,43412.0,0.23465347]
[1644247641208,0.00040472,43417.0,43414.0,0.057613]
[1644247641413,0.00040472,43417.0,43415.0,0.05760976]
[1644247641609,0.00040472,43417.0,43415.0,0.16706579]
[1644247642657,0.00040472,43417.0,43416.0,0.28083147]
[1644247643658,0.00084357,43418.0,43417.0,0.8]
[1644247643858,0.00357388,43425.0,43418.0,0.8]
[1644247643859,0.001,43425.0,43418.0,0.8]
[1644247644056,0.001,43425.0,43422.0,0.5]
[1644247644262,0.40590644,43437.0,43425.0,0.8]
[1644247644457,0.40590644,43437.0,43434.0,0.05]
[1644247644458,0.06085001,43437.0,43434.0,0.05]
[1644247644759,0.06085001,43437.0,43435.0,0.64311304]
[1644247644958,0.06085001,43437.0,43435.0,0.1]
[1644247645158,0.06085001,43437.0,43435.0,0.05]
[1644247645360,0.00128124,43446.0,43438.0,1.126512]
[1644247645615,0.34505643,43448.0,43441.0,0.8]
[1644247645817,0.02129366,43449.0,43442.0,0.672612]
[1644247646016,0.02129366,43449.0,43443.0,0.05]
[1644247646213,0.02129366,43449.0,43444.0,0.372612]
[1644247646414,0.0401,43450.0,43444.0,0.372612]
[1644247646415,0.0401,43450.0,43446.0,1.126512]
[1644247646614,0.0401,43450.0,43445.0,0.31954979]
[1644247646615,0.0351,43450.0,43445.0,0.31954979]
[1644247646914,0.0351,43450.0,43446.0,0.26041228]
[1644247647116,0.0351,43450.0,43446.0,0.1]
[1644247647714,0.03573552,43450.0,43446.0,0.1]
[1644247648214,0.07623354,43448.0,43446.0,0.157553]
[1644247648418,0.07623354,43448.0,43445.0,0.17265882]
[1644247648419,0.05,43447.0,43445.0,0.17265882]
[1644247648614,0.05,43447.0,43438.0,0.4661]
[1644247648615,0.05,43447.0,43438.0,0.42]
[1644247648915,0.07623354,43448.0,43438.0,0.42]
[1644247648916,0.05,43445.0,43438.0,0.42]
[1644247649114,0.045,43445.0,43438.0,0.32]
[1644247649354,0.07686906,43448.0,43438.0,0.32]
[1644247649554,0.07686906,43448.0,43438.0,0.377577]
[1644247649755,0.045,43444.0,43438.0,0.377577]
[1644247649956,0.045,43444.0,43438.0,0.435151]
[1644247650154,0.00063552,43445.0,43438.0,0.535151]
[1644247650755,0.30166945,43441.0,43438.0,0.45624812]
[1644247650958,0.045,43439.0,43438.0,0.34109712]
[1644247651553,0.045,43439.0,43438.0,0.51600712]
[1644247653121,0.045,43439.0,43438.0,0.49491]
[1644247653722,0.045,43439.0,43438.0,0.66982]
[1644247654120,0.045,43439.0,43438.0,0.34982]
[1644247654520,0.045,43439.0,43438.0,0.39982]
[1644247655120,0.045,43439.0,43438.0,0.34982]
[1644247655522,0.045,43439.0,43438.0,0.39982]
[1644247655721,0.045,43439.0,43438.0,0.44982]
[1644247656126,0.0351,43450.0,43438.0,0.44982]
[1644247656127,0.045,43442.0,43438.0,0.44982]
[1644247656322,0.00091544,43441.0,43438.0,0.44982]
[1644247656523,0.00063552,43441.0,43438.0,0.44982]
[1644247656758,0.00063552,43441.0,43438.0,0.47164038]
[1644247657159,0.00027992,43442.0,43438.0,0.47164038]
[1644247657359,0.00027992,43443.0,43438.0,0.47164038]
[1644247657561,0.00063552,43442.0,43438.0,0.47164038]
[1644247657758,0.0016497,43439.0,43438.0,0.42164038]
[1644247657958,0.0016497,43439.0,43438.0,0.42664038]
[1644247658359,0.0016497,43439.0,43438.0,0.42164038]
[1644247658562,0.0466497,43439.0,43438.0,0.37164038]
[1644247659160,0.0466497,43439.0,43438.0,0.28308485]
[1644247659362,0.26493852,43439.0,43438.0,0.28308485]
[1644247659562,0.0466497,43439.0,43438.0,0.28308485]
[1644247659961,0.0016497,43439.0,43438.0,0.28308485]
[1644247660608,0.0016497,43439.0,43438.0,0.18308485]
[1644247661807,0.0466497,43439.0,43438.0,0.18308485]
[1644247662008,0.0466497,43439.0,43438.0,0.17808485]
[1644247662208,0.11660836,43439.0,43438.0,0.17808485]
[1644247662417,0.1627707,43439.0,43438.0,0.17808485]
[1644247663410,0.2203697,43439.0,43438.0,0.17808485]
[1644247663811,0.2203697,43439.0,43438.0,0.35299485]
[1644247664658,0.1627707,43439.0,43438.0,0.35299485]
[1644247665458,0.8,43438.0,43435.0,0.04018535]
[1644247665660,0.045,43436.0,43424.0,0.28173228]
[1644247665859,0.0461,43435.0,43424.0,0.00072087]
[1644247666059,0.045,43427.0,43425.0,0.08845]
[1644247666459,0.19191787,43426.0,43425.0,0.08845]
[1644247667663,0.23801787,43426.0,43425.0,0.08845]
[1644247667864,0.23801787,43426.0,43425.0,0.22114]
[1644247668112,0.55796371,43426.0,43425.0,0.22114]
[1644247668313,0.65796371,43426.0,43425.0,0.22114]
[1644247669213,0.65796371,43426.0,43425.0,0.17633966]
[1644247669511,0.8,43425.0,43421.0,0.00072082]
[1644247669714,0.045,43422.0,43421.0,0.00072082]
[1644247669911,0.0911,43422.0,43421.0,0.00072082]
[1644247670111,0.05,43423.0,43421.0,8.2e-07]
[1644247670312,0.0961,43423.0,43421.0,8.2e-07]
[1644247670611,0.107626,43422.0,43421.0,8.2e-07]
[1644247670811,0.15400595,43422.0,43421.0,8.2e-07]
[1644247671010,0.103726,43422.0,43421.0,8.2e-07]
[1644247671210,0.203726,43422.0,43412.0,0.02036921]
[1644247671413,0.26485454,43413.0,43412.0,0.02036921]
[1644247671610,0.35,43412.0,43407.0,0.13274]
[1644247671863,0.0461,43411.0,43407.0,0.13274]
[1644247672462,0.0461,43411.0,43408.0,0.35]
[1644247672662,0.02036921,43413.0,43409.0,0.21966146]
[1644247673262,0.0461,43412.0,43407.0,0.18327013]
[1644247673462,0.0461,43412.0,43408.0,0.05]
[1644247674262,0.0461,43412.0,43408.0,0.00072134]
[1644247674864,0.0461,43412.0,43408.0,0.05072134]
[1644247675264,0.0461,43412.0,43408.0,0.05]
[1644247675510,0.0461,43412.0,43409.0,0.05]